bitfinex/quotes_BTCUSD_20220109
["timestamp","ask_amount","ask_price","bid_price","bid_amount"]
[1641691523046,0.36044386,41729.0,41724.0,0.059]
[1641691523248,0.1,41727.0,41724.0,0.059]
[1641691523745,0.059939,41726.0,41724.0,0.059]
[1641691523944,0.059939,41726.0,41714.0,0.00127221]
[1641691524144,0.26606441,41715.0,41714.0,0.00127221]
[1641691524548,0.1478,41725.0,41714.0,0.39721421]
[1641691524846,0.059942,41720.0,41714.0,0.01127221]
[1641691525545,0.23646689,41719.0,41714.0,0.01]
[1641691525747,0.059942,41717.0,41713.0,0.10826139]
[1641691526046,0.059942,41717.0,41713.0,0.10826142]
[1641691526700,0.064942,41717.0,41713.0,0.12326142]
[1641691527104,0.064942,41717.0,41713.0,0.12326144]
[1641691528105,0.059942,41717.0,41713.0,0.10826144]
[1641691528306,0.059942,41717.0,41713.0,0.10826143]
[1641691528506,0.063942,41717.0,41713.0,0.13026143]
[1641691529107,0.063942,41717.0,41714.0,0.385942]
[1641691529307,0.063942,41717.0,41713.0,0.02237543]
[1641691529909,0.059942,41717.0,41713.0,0.00037543]
[1641691530656,0.064942,41717.0,41713.0,0.01237543]
[1641691531263,0.159032,41717.0,41713.0,0.01237543]
[1641691531457,3.13479787,41717.0,41713.0,0.01237543]
[1641691531657,0.0478,41716.0,41713.0,0.01237543]
[1641691531857,0.00127966,41714.0,41705.0,0.22700156]
[1641691532060,0.059961,41710.0,41705.0,0.225577]
[1641691532258,0.28156539,41706.0,41700.0,0.0012139]
[1641691532457,0.28156539,41706.0,41701.0,0.053963]
[1641691532657,0.28156539,41706.0,41700.0,0.05996088]
[1641691532860,0.28156539,41706.0,41699.0,0.16148157]
[1641691533459,0.059961,41704.0,41699.0,0.16148157]
[1641691533660,0.22092479,41703.0,41699.0,0.16148157]
[1641691533896,0.0478,41704.0,41699.0,0.16148157]
[1641691534698,0.119949,41702.0,41699.0,0.16148157]
[1641691535898,0.0478,41704.0,41699.0,0.16148157]
[1641691536201,0.0478,41704.0,41700.0,0.0599596]
[1641691536398,0.28156539,41706.0,41699.0,0.16148157]
[1641691536598,0.009,41704.0,41699.0,0.16148157]
[1641691536800,0.009,41704.0,41701.0,0.00038033]
[1641691537948,0.28156539,41706.0,41702.0,0.00038031]
[1641691538747,0.28856539,41706.0,41702.0,0.00038031]
[1641691538944,0.28856539,41706.0,41703.0,0.00038028]
[1641691539345,0.119924,41704.0,41703.0,0.00038028]
[1641691540246,0.119924,41704.0,41700.0,0.27054929]
[1641691540645,0.169924,41704.0,41700.0,0.27054929]
[1641691540844,0.169924,41704.0,41699.0,0.22144557]
[1641691541296,0.169924,41704.0,41701.0,0.00037485]
[1641691541898,0.119924,41704.0,41701.0,0.00037485]
[1641691542199,0.119924,41704.0,41702.0,0.00037484]
[1641691542597,0.121924,41704.0,41702.0,0.00037484]
[1641691544000,0.119924,41704.0,41702.0,0.00037484]
[1641691544601,0.121924,41704.0,41702.0,0.00037484]
[1641691545060,0.021924,41704.0,41702.0,0.00037484]
[1641691545659,0.021924,41704.0,41702.0,0.00037308]
[1641691546065,0.021924,41704.0,41702.0,0.0603327]
[1641691546464,0.019924,41704.0,41702.0,0.0603327]
[1641691546761,0.022924,41704.0,41702.0,0.00037308]
[1641691547963,0.019924,41704.0,41702.0,0.00037308]
[1641691548662,0.021924,41704.0,41702.0,0.00037308]
[1641691549910,0.019924,41704.0,41702.0,0.00037316]
[1641691550710,0.035924,41704.0,41702.0,0.00037316]
[1641691551811,0.019924,41704.0,41702.0,0.00037316]
[1641691552663,0.035924,41704.0,41702.0,0.00037316]
[1641691552860,0.22016016,41703.0,41702.0,0.00037316]
[1641691553463,0.035924,41704.0,41702.0,0.00037316]
[1641691553862,0.019924,41704.0,41702.0,0.00037316]
[1641691554360,0.019924,41704.0,41702.0,0.00037315]
[1641691554561,0.036924,41704.0,41702.0,0.00037315]
[1641691556062,0.019924,41704.0,41702.0,0.00037315]
[1641691556702,0.036924,41704.0,41702.0,0.00037315]
[1641691557301,0.036924,41704.0,41702.0,0.0007463]
[1641691557904,0.019924,41704.0,41702.0,0.00037315]
[1641691558704,0.035924,41704.0,41702.0,0.00037315]
[1641691559503,0.035924,41704.0,41702.0,0.0003714]
[1641691560351,0.019924,41704.0,41702.0,0.0003714]
[1641691560748,0.034924,41704.0,41702.0,0.0003714]
[1641691561550,0.034924,41704.0,41702.0,0.0007428]
[1641691561752,0.034924,41704.0,41702.0,0.0003714]
[1641691561953,0.019924,41704.0,41702.0,0.0003714]
[1641691562751,0.035924,41704.0,41702.0,0.00037323]
[1641691564006,0.019924,41704.0,41702.0,0.00037323]
[1641691564607,0.036924,41704.0,41702.0,0.00037323]
[1641691566009,0.019924,41704.0,41702.0,0.00037315]
[1641691566608,0.033924,41704.0,41702.0,0.00037315]
[1641691567852,0.019924,41704.0,41702.0,0.00037315]
[1641691568652,0.034924,41704.0,41702.0,0.00037315]
[1641691569951,0.019924,41704.0,41702.0,0.00037315]
[1641691570653,0.026924,41704.0,41702.0,0.00037315]
[1641691571701,0.026924,41704.0,41702.0,0.06033343]
[1641691571901,0.019924,41704.0,41702.0,0.06033343]
[1641691572501,0.019924,41704.0,41702.0,0.06070658]
[1641691572701,0.026924,41704.0,41702.0,0.06033343]
[1641691574001,0.019924,41704.0,41702.0,0.06033343]
[1641691574801,0.24391737,41704.0,41702.0,0.00037315]
[1641691575450,0.026924,41704.0,41702.0,0.00037315]
[1641691575850,0.23793311,41704.0,41702.0,0.0007463]
[1641691576051,0.23793311,41704.0,41702.0,0.00037315]
[1641691576850,0.25093311,41704.0,41702.0,0.00037315]
[1641691577051,0.032924,41704.0,41702.0,0.00037315]
[1641691577953,0.019924,41704.0,41702.0,0.00037315]
[1641691578655,0.030924,41704.0,41702.0,0.06033465]
[1641691580004,0.019924,41704.0,41702.0,0.06033465]
[1641691580807,0.029924,41704.0,41702.0,0.06033465]
[1641691582009,0.019924,41704.0,41702.0,0.06033465]
[1641691582207,0.019924,41704.0,41702.0,0.0607078]
[1641691582687,0.027924,41704.0,41702.0,0.0607078]
[1641691582885,0.027924,41704.0,41702.0,0.06033465]
[1641691583887,0.019924,41704.0,41702.0,0.06033465]
[1641691584489,0.019924,41704.0,41702.0,0.0603329]
[1641691584688,0.019924,41704.0,41702.0,0.0653329]
[1641691584890,0.179905,41708.0,41705.0,0.059961]
[1641691584891,0.119907,41707.0,41705.0,0.059961]
[1641691585089,0.00043817,41718.0,41711.0,0.00128588]
[1641691585291,0.00043817,41718.0,41711.0,0.27334466]
[1641691585490,0.00043817,41718.0,41711.0,0.09351588]
[1641691585691,0.30894671,41714.0,41711.0,0.07045588]
[1641691585893,0.30894671,41714.0,41713.0,0.26167854]
[1641691586092,0.30894671,41714.0,41713.0,0.38155554]
[1641691586705,0.30894671,41714.0,41713.0,0.38555554]
[1641691586907,0.30894671,41714.0,41713.0,0.50543527]
[1641691587105,0.30894671,41714.0,41713.0,0.24375673]
[1641691587307,0.30894671,41714.0,41713.0,0.004]
[1641691588006,0.30894671,41714.0,41708.0,0.00037308]
[1641691588206,0.059959,41711.0,41708.0,0.00037308]
[1641691588609,0.059966,41710.0,41708.0,0.00037308]
[1641691588807,0.059966,41710.0,41708.0,0.00074618]
[1641691589106,0.059966,41710.0,41708.0,0.0003731]
[1641691589708,0.119932,41710.0,41708.0,0.0003731]
[1641691589910,0.119932,41710.0,41708.0,0.00037312]
[1641691590150,0.059968,41709.0,41708.0,0.00037312]
[1641691590950,0.059968,41709.0,41708.0,0.00037305]
[1641691591754,0.059968,41709.0,41705.0,0.05533405]
[1641691592155,0.059968,41709.0,41708.0,0.00037305]
[1641691593152,0.059968,41709.0,41705.0,0.05533405]
[1641691594003,0.059968,41709.0,41705.0,0.11529297]
[1641691594605,0.059968,41709.0,41705.0,0.05533405]
[1641691600453,0.059968,41709.0,41706.0,0.059957]
[1641691601811,0.059968,41709.0,41705.0,0.06233405]
[1641691602011,0.059968,41709.0,41705.0,0.05533405]
[1641691603914,0.059968,41709.0,41706.0,0.17985793]
[1641691604316,0.059968,41709.0,41706.0,0.38302533]
[1641691604517,0.059944,41712.0,41707.0,1.10904473]
[1641691605168,0.059944,41712.0,41709.0,0.05994305]
[1641691605362,0.059944,41712.0,41710.0,0.59804418]
[1641691605561,0.059944,41712.0,41711.0,0.60700179]
[1641691605762,0.059944,41712.0,41711.0,0.99294379]
[1641691606364,0.059944,41712.0,41711.0,0.11988566]
[1641691606763,0.059944,41712.0,41711.0,0.12988566]
[1641691608064,0.059944,41712.0,41711.0,0.11988566]
[1641691608805,0.059944,41712.0,41711.0,0.51082766]
[1641691609608,0.059944,41712.0,41711.0,0.12488566]
[1641691610011,0.059944,41712.0,41711.0,0.005]
[1641691610213,0.059944,41712.0,41705.0,0.17523805]
[1641691610710,0.059944,41712.0,41705.0,0.05733405]
[1641691612013,0.171114,41712.0,41705.0,0.05533405]
[1641691612213,0.05997,41709.0,41705.0,0.05533405]
[1641691612413,0.329887,41708.0,41705.0,0.05533405]
[1641691612660,0.059972,41707.0,41705.0,0.05533405]
[1641691614062,0.059972,41706.0,41705.0,0.05533405]
[1641691618111,0.059972,41706.0,41705.0,0.25629473]
[1641691618409,0.059972,41706.0,41705.0,0.05533405]
[1641691618807,0.059972,41706.0,41705.0,0.05633405]
[1641691620061,0.059972,41706.0,41705.0,0.05533405]
[1641691621665,0.51567811,41705.0,41704.0,0.001924]
[1641691621865,0.51567811,41705.0,41703.0,0.00037067]
[1641691622066,0.059976,41704.0,41699.0,0.16148157]
[1641691622265,0.35490384,41704.0,41699.0,0.14997624]
[1641691622464,0.29492784,41704.0,41699.0,0.14997624]
[1641691622665,0.23495184,41704.0,41699.0,0.14997624]
[1641691623065,0.059975,41702.0,41699.0,0.14997624]
[1641691627952,0.059975,41702.0,41699.0,0.14497624]
[1641691630155,0.059975,41702.0,41699.0,0.13997624]
[1641691632129,0.059975,41702.0,41699.0,0.11684753]
[1641691632329,0.75124019,41700.0,41698.0,0.00036824]
[1641691632528,0.0478,41699.0,41698.0,0.00036824]
[1641691632730,0.29843501,41699.0,41698.0,0.00036824]
[1641691633029,0.55,41698.0,41697.0,0.0073]
[1641691633228,0.0478,41698.0,41697.0,0.0073]
[1641691633929,0.7,41697.0,41696.0,1e-05]
[1641691634929,0.16778021,41698.0,41696.0,1e-05]
[1641691635953,0.22776921,41698.0,41696.0,1e-05]
[1641691636169,0.167779,41698.0,41696.0,1e-05]
[1641691636856,0.10779,41698.0,41696.0,1e-05]
[1641691637653,0.20779,41698.0,41696.0,1e-05]
[1641691637854,0.10779,41698.0,41696.0,1e-05]
[1641691639333,0.10779,41698.0,41695.0,0.00022]
[1641691639334,0.00057981,41697.0,41695.0,0.00022]
[1641691639533,0.06056981,41697.0,41695.0,0.00022]
[1641691639736,0.06056981,41697.0,41693.0,0.01062931]
[1641691640035,0.04843503,41696.0,41693.0,0.01062931]
[1641691640235,0.04843503,41696.0,41691.0,0.00422]
[1641691640436,0.059996,41694.0,41691.0,0.00422]
[1641691640634,0.0478,41693.0,41691.0,0.00422]
[1641691642870,0.0818,41693.0,41691.0,0.00422]
[1641691644067,0.0478,41693.0,41691.0,0.00422]
[1641691644867,0.0828,41693.0,41691.0,0.00422]
[1641691645067,0.33265434,41694.0,41691.0,0.00422]
[1641691645269,0.38045434,41694.0,41691.0,0.00422]
[1641691645468,0.28045434,41694.0,41691.0,0.00422]
[1641691645667,0.32777715,41694.0,41691.0,0.00422]
[1641691646513,0.22777715,41694.0,41691.0,0.00422]
[1641691648714,0.107796,41694.0,41691.0,0.00422]
[1641691648912,0.107796,41694.0,41692.0,0.059977]
[1641691648913,0.059996,41694.0,41692.0,0.059977]
[1641691649116,0.059996,41694.0,41693.0,0.21930912]
[1641691649511,0.059996,41694.0,41693.0,0.46930912]
[1641691650166,0.059996,41694.0,41693.0,0.21930912]
[1641691650969,0.059996,41694.0,41693.0,0.22330912]
[1641691651169,0.059996,41694.0,41693.0,0.004]
[1641691651371,0.059996,41694.0,41693.0,0.20290486]
[1641691652268,0.059996,41694.0,41693.0,0.19890486]
[1641691652869,0.059996,41694.0,41693.0,0.20290486]
[1641691653270,0.059996,41694.0,41693.0,0.004]
[1641691653471,0.059996,41694.0,41693.0,0.20435927]
[1641691654109,0.059996,41694.0,41693.0,0.59030127]
[1641691654511,0.059996,41694.0,41693.0,0.94030127]
[1641691654807,0.059996,41694.0,41693.0,0.750942]
[1641691655009,0.059996,41694.0,41693.0,0.400942]
[1641691656208,0.059996,41694.0,41693.0,0.60393952]
[1641691656409,0.059996,41694.0,41693.0,0.385942]
[1641691656609,0.059996,41694.0,41692.0,0.17991835]
[1641691656810,0.059996,41694.0,41693.0,0.263]
[1641691657013,0.059996,41694.0,41693.0,0.46142298]
[1641691657759,0.059996,41694.0,41693.0,0.263]
[1641691658160,0.059996,41694.0,41693.0,0.25]
[1641691658760,0.059996,41694.0,41692.0,0.50924011]
[1641691658961,0.059996,41694.0,41693.0,0.314]
[1641691660160,0.059996,41694.0,41693.0,0.3]
[1641691660962,0.059996,41694.0,41693.0,0.31]
[1641691661164,0.059996,41694.0,41693.0,0.01]
[1641691661410,0.119949,41695.0,41694.0,0.87968729]
[1641691662510,0.119949,41695.0,41694.0,0.55066798]
[1641691662910,0.119949,41695.0,41694.0,0.55866798]
[1641691664212,0.119949,41695.0,41694.0,0.55066798]
[1641691665865,0.33237997,41695.0,41694.0,0.55066798]
[1641691666865,0.33237997,41695.0,41694.0,0.55166798]
[1641691667867,0.56698997,41695.0,41694.0,0.55166798]
[1641691668065,0.61478997,41695.0,41694.0,0.55166798]
[1641691668912,0.61478997,41695.0,41694.0,0.55066798]
[1641691670414,0.75,41694.0,41693.0,0.095]
[1641691670615,0.34299328,41694.0,41693.0,0.095]
[1641691670813,0.4978,41694.0,41693.0,0.05938251]
[1641691671015,0.2,41693.0,41689.0,0.16824]
[1641691671313,0.49497861,41692.0,41689.0,0.16824]
[1641691671512,0.54497861,41692.0,41689.0,0.16824]
[1641691671713,0.59497861,41692.0,41689.0,0.16824]
[1641691671914,0.65497541,41692.0,41689.0,0.16824]
[1641691672114,0.059997,41691.0,41689.0,0.16824]
[1641691672318,0.0478,41690.0,41689.0,0.16824]
[1641691679320,0.0478,41690.0,41689.0,0.61824]
[1641691679522,0.059988,41691.0,41689.0,0.61824]
[1641691679921,0.059988,41691.0,41689.0,0.16824]
[1641691680960,0.059988,41691.0,41689.0,0.16924]
[1641691681962,0.28266416,41691.0,41689.0,0.16924]
[1641691682164,0.28266416,41691.0,41689.0,0.16824]
[1641691682463,0.11998,41691.0,41689.0,0.16824]
[1641691682665,0.14292,41691.0,41689.0,0.16824]
[1641691682863,0.0478,41690.0,41688.0,0.00069143]
[1641691683061,0.167806,41690.0,41688.0,0.00069143]
[1641691683262,0.167806,41690.0,41683.0,0.00022]
[1641691683263,0.30175671,41688.0,41683.0,0.00022]
[1641691683463,0.06000305,41686.0,41683.0,0.00022]
[1641691683826,0.0478,41686.0,41683.0,0.00022]
[1641691684024,0.107804,41686.0,41683.0,0.00022]
[1641691685629,0.39572403,41686.0,41683.0,0.00062785]
[1641691685829,0.22145723,41685.0,41683.0,0.00062785]
[1641691686631,0.22145723,41685.0,41683.0,0.0010357]
[1641691686830,0.22145723,41685.0,41683.0,0.00062785]
[1641691687432,0.56142405,41686.0,41683.0,0.00062785]
[1641691687661,0.78286435,41686.0,41683.0,0.00062785]
[1641691687864,0.56142405,41686.0,41683.0,0.00058568]
[1641691688864,0.56142405,41686.0,41683.0,0.00095136]
[1641691689161,0.56142405,41686.0,41683.0,0.00058568]
[1641691689563,0.17350402,41686.0,41683.0,0.00058568]
[1641691690063,0.17350402,41686.0,41683.0,0.00057066]
[1641691690064,0.12570402,41686.0,41683.0,0.00057066]
[1641691690763,0.12570402,41686.0,41683.0,0.06055887]
[1641691690963,0.12570402,41686.0,41684.0,0.065319]
[1641691692215,0.12570402,41686.0,41684.0,0.060319]
[1641691692516,0.12570402,41686.0,41684.0,0.00033]
[1641691692916,0.12570402,41686.0,41684.0,0.00533]
[1641691693118,0.12570402,41686.0,41684.0,0.06531674]
[1641691693518,0.12570402,41686.0,41684.0,0.12530574]
[1641691694118,0.12570402,41686.0,41684.0,0.12030574]
[1641691694619,0.12570402,41686.0,41684.0,0.00033]
[1641691695067,0.12570402,41686.0,41684.0,0.00533]
[1641691695866,0.12570402,41686.0,41684.0,0.12467832]
[1641691696669,0.12570402,41686.0,41684.0,0.065207]
[1641691696867,0.12570402,41686.0,41684.0,0.060207]
[1641691697067,0.12570402,41686.0,41684.0,0.065207]
[1641691698170,0.12570402,41686.0,41684.0,0.060207]
[1641691698368,0.12570402,41686.0,41684.0,0.00022]
[1641691699015,0.12570402,41686.0,41684.0,0.00522]
[1641691699215,0.12570402,41686.0,41684.0,0.0652068]
[1641691699416,0.12570402,41686.0,41684.0,0.1251958]
[1641691699616,0.2978,41685.0,41684.0,0.00522]
[1641691699818,0.2978,41685.0,41683.0,0.00432899]
[1641691700114,0.0978,41685.0,41683.0,0.00432899]
[1641691700315,0.3613633,41684.0,41681.0,0.00433]
[1641691700515,0.05,41683.0,41681.0,0.00433]
[1641691700718,0.53757884,41683.0,41680.0,0.00033]
[1641691700915,0.53757884,41683.0,41675.0,0.22916384]
[1641691701114,0.68757884,41683.0,41681.0,0.005]
[1641691701319,0.68757884,41683.0,41679.0,0.00227992]
[1641691701516,0.060008,41682.0,41679.0,0.00227992]
[1641691701716,0.060008,41681.0,41679.0,0.00227992]
[1641691701917,0.1700156,41681.0,41679.0,0.00227992]
[1641691702318,0.060008,41681.0,41679.0,0.00227992]
[1641691702973,0.060008,41681.0,41679.0,0.00727992]
[1641691704875,0.060008,41681.0,41679.0,0.00227992]
[1641691705075,0.060008,41681.0,41679.0,0.00527992]
[1641691705275,0.060008,41681.0,41674.0,0.01344972]
[1641691705476,0.060008,41681.0,41678.0,0.00036336]
[1641691706516,0.060008,41681.0,41674.0,0.01344972]
[1641691706712,0.060008,41681.0,41675.0,0.11999737]
[1641691706912,0.060008,41681.0,41674.0,0.01344972]
[1641691707112,0.060008,41681.0,41674.0,0.02044972]
[1641691707713,0.059198,41681.0,41674.0,0.02044972]
[1641691708114,0.059198,41681.0,41677.0,0.059997]
[1641691708914,0.059198,41681.0,41674.0,0.01344972]
[1641691709215,0.059198,41681.0,41677.0,0.005]
[1641691710270,0.059198,41681.0,41674.0,0.01344972]
[1641691710671,0.119204,41681.0,41674.0,0.01344972]
[1641691710871,0.060005,41678.0,41674.0,0.01344972]
[1641691711071,0.060005,41678.0,41674.0,0.02044972]
[1641691712371,0.060005,41678.0,41674.0,0.01344972]
[1641691712972,0.060005,41678.0,41674.0,0.02044972]
[1641691714016,0.37695068,41678.0,41674.0,0.02044972]
[1641691714217,0.47695068,41678.0,41674.0,0.01344972]
[1641691714916,0.060005,41678.0,41674.0,0.01344972]
[1641691715117,0.060005,41678.0,41674.0,0.02044972]
[1641691716423,0.060005,41678.0,41674.0,0.01344972]
[1641691716821,3.65217266,41681.0,41679.0,0.41461885]
[1641691717221,3.55217266,41681.0,41679.0,0.41461885]
[1641691717423,3.65217266,41681.0,41679.0,0.41461885]
[1641691717675,0.060003,41680.0,41679.0,0.41461885]
[1641691719275,0.060003,41680.0,41679.0,0.41861885]
[1641691719875,0.12001046,41680.0,41679.0,0.41861885]
[1641691720276,0.17001046,41680.0,41679.0,0.41461885]
[1641691720675,0.12001046,41680.0,41679.0,0.41461885]
[1641691720876,0.060003,41680.0,41679.0,0.41461885]
[1641691721078,0.060003,41680.0,41679.0,0.41561885]
[1641691721320,0.121123,41680.0,41674.0,0.01344972]
[1641691721622,0.060014,41677.0,41674.0,0.01344972]
[1641691722317,0.27345291,41676.0,41674.0,0.01344972]
[1641691722517,0.32345291,41676.0,41674.0,0.01344972]
[1641691723016,0.43945291,41676.0,41674.0,0.01744972]
[1641691723416,0.48945291,41676.0,41674.0,0.01744972]
[1641691724319,0.47345291,41676.0,41674.0,0.01344972]
[1641691724716,0.51002291,41676.0,41674.0,0.01344972]
[1641691725166,0.53202291,41676.0,41674.0,0.01344972]
[1641691725366,0.27751447,41675.0,41674.0,0.01344972]
[1641691725768,0.0478,41675.0,41674.0,0.01344972]
[1641691726667,0.0978,41675.0,41674.0,0.01344972]
[1641691727068,0.35841361,41675.0,41674.0,0.01344972]
[1641691727567,0.50841361,41675.0,41674.0,0.01344972]
[1641691728068,0.50841361,41675.0,41673.0,0.00078447]
[1641691728069,0.50841361,41675.0,41672.0,0.00042]
[1641691728269,0.060021,41674.0,41671.0,0.00443]
[1641691728471,0.16784149,41674.0,41671.0,0.00443]
[1641691728819,0.10782049,41674.0,41668.0,0.00021]
[1641691729019,0.14782049,41674.0,41668.0,0.00021]
[1641691729220,0.14782049,41674.0,41669.0,0.00451501]
[1641691729420,0.14782049,41674.0,41673.0,0.20035446]
[1641691729618,0.26785649,41674.0,41673.0,0.20035446]
[1641691730421,0.22785649,41674.0,41673.0,0.00035446]
[1641691730622,0.22785649,41674.0,41669.0,0.00451501]
[1641691730820,0.28787049,41674.0,41669.0,0.00451501]
[1641691731020,0.05,41673.0,41669.0,0.00451501]
[1641691731221,0.170029,41673.0,41669.0,0.00451501]
[1641691731821,0.120029,41673.0,41669.0,0.00451501]
[1641691732025,0.060014,41672.0,41669.0,0.00451501]
[1641691733066,0.079014,41672.0,41669.0,0.00851501]
[1641691734268,0.05974124,41672.0,41669.0,0.00451501]
[1641691735068,0.05974124,41672.0,41669.0,0.00751501]
[1641691736423,0.05974124,41672.0,41669.0,0.00451501]
[1641691737023,0.05974124,41672.0,41669.0,0.00651501]
[1641691738424,0.05974124,41672.0,41669.0,0.00451501]
[1641691738923,0.11975824,41672.0,41671.0,0.47306661]
[1641691741074,0.05974124,41672.0,41671.0,0.47306661]
[1641691745125,0.05974124,41672.0,41671.0,0.47406661]
[1641691746425,0.05974124,41672.0,41671.0,0.47306661]
[1641691749176,0.05974124,41672.0,41671.0,0.47506661]
[1641691749976,0.43440124,41672.0,41669.0,0.00451501]
[1641691750178,0.31447844,41672.0,41669.0,0.00451501]
[1641691750376,0.107827,41671.0,41669.0,0.00451501]
[1641691750578,0.120066,41669.0,41663.0,0.0167506]
[1641691750776,0.0478,41668.0,41663.0,0.0167506]
[1641691750977,0.0978,41668.0,41663.0,0.0167506]
[1641691751324,0.06003049,41667.0,41663.0,0.0167506]
[1641691751527,0.36083267,41667.0,41662.0,0.00011]
[1641691751829,0.36083267,41667.0,41658.0,0.00043]
[1641691751830,0.06573568,41664.0,41654.0,0.28968126]
[1641691752024,0.06573568,41664.0,41654.0,0.29097734]
[1641691752226,0.06573568,41664.0,41654.0,0.0001406]
[1641691752426,0.152338,41660.0,41654.0,0.23094734]
[1641691752626,0.060036,41657.0,41654.0,0.0001406]
[1641691752828,0.060036,41657.0,41652.0,0.00021]
[1641691753026,0.27797567,41649.0,41645.0,0.00032]
[1641691753425,0.27797567,41649.0,41646.0,0.00043]
[1641691753830,0.49261922,41649.0,41646.0,0.00043]
[1641691754033,0.49261922,41649.0,41645.0,0.00032]
[1641691754034,0.0058262,41646.0,41645.0,0.00032]
[1641691754328,0.05362481,41646.0,41640.0,0.78657661]
[1641691754728,0.05362481,41646.0,41640.0,0.7429888]
[1641691754928,0.05362481,41646.0,41640.0,0.73698406]
[1641691755174,0.06262481,41646.0,41640.0,0.66373394]
[1641691755377,0.060062,41643.0,41640.0,0.66373394]
[1641691755576,0.00120815,41641.0,41640.0,0.66373394]
[1641691755776,0.10051851,41641.0,41640.0,0.06839494]
[1641691755978,0.10051851,41641.0,41640.0,0.0069]
[1641691755979,0.15051851,41641.0,41640.0,0.0069]
[1641691756177,0.25,41640.0,41633.0,0.0005509]
[1641691756379,0.25,41640.0,41634.0,0.00022]
[1641691756380,0.30535899,41635.0,41634.0,0.00022]
[1641691756581,0.59470161,41635.0,41634.0,0.00022]
[1641691756781,0.59470161,41635.0,41630.0,0.00032]
[1641691756979,0.64470161,41635.0,41630.0,0.00032]
[1641691757178,0.73050555,41635.0,41630.0,0.00032]
[1641691757379,0.31623389,41629.0,41624.0,0.96301]
[1641691757580,0.1,41629.0,41623.0,0.0294783]
[1641691757779,0.15151486,41628.0,41623.0,0.0294783]
[1641691758181,0.0478,41631.0,41624.0,0.385942]
[1641691758381,0.00129576,41639.0,41624.0,0.1]
[1641691758580,0.120128,41633.0,41628.0,0.00128309]
[1641691759028,0.120128,41633.0,41626.0,0.37481548]
[1641691759229,0.128128,41633.0,41624.0,0.27206165]
[1641691759833,0.128128,41633.0,41630.0,0.29084722]
[1641691760431,0.120128,41633.0,41630.0,0.29084722]
[1641691761238,0.006008,41633.0,41630.0,0.39084722]
[1641691761434,0.006008,41633.0,41631.0,0.633742]
[1641691761733,8e-06,41633.0,41631.0,0.633742]
[1641691761931,8e-06,41633.0,41632.0,0.385942]
[1641691762134,8e-06,41633.0,41632.0,0.433742]
[1641691762570,0.120097,41643.0,41635.0,0.0600479]
[1641691762773,0.120097,41643.0,41636.0,0.060048]
[1641691763372,0.06005,41640.0,41636.0,0.060048]
[1641691763776,0.06005,41640.0,41637.0,0.385942]
[1641691764774,0.06005,41640.0,41638.0,0.054043]
[1641691764974,0.06005,41640.0,41639.0,0.785942]
[1641691765575,0.060044,41643.0,41639.0,0.785942]
[1641691765779,0.060044,41643.0,41639.0,0.4]
[1641691766076,0.060044,41643.0,41639.0,0.385]
[1641691766819,0.060044,41643.0,41636.0,0.120092]
[1641691767021,0.060044,41643.0,41636.0,0.174138]
[1641691767220,0.060044,41643.0,41635.0,0.29092871]
[1641691767221,0.062044,41643.0,41638.0,0.28348402]
[1641691768221,0.062044,41643.0,41639.0,0.39735589]
[1641691768528,0.00582481,41646.0,41641.0,0.2]
[1641691768723,0.00582481,41646.0,41643.0,0.2]
[1641691768925,0.00582481,41646.0,41644.0,0.385942]
[1641691769120,0.00582481,41646.0,41644.0,0.43997]
[1641691769324,0.00582481,41646.0,41645.0,1.04519846]
[1641691769521,0.00582481,41646.0,41645.0,1.43114046]
[1641691770769,0.00582481,41646.0,41645.0,1.04519846]
[1641691770970,0.00582481,41646.0,41645.0,1.43114046]
[1641691771172,0.00582481,41646.0,41645.0,0.70814046]
[1641691772071,0.00582481,41646.0,41645.0,0.027]
[1641691772673,0.00582481,41646.0,41639.0,0.2]
[1641691773072,0.060041,41645.0,41644.0,0.30509565]
[1641691773273,0.060041,41645.0,41644.0,0.25]
[1641691773574,0.00582481,41646.0,41644.0,0.25]
[1641691773817,0.00582481,41646.0,41645.0,0.935942]
[1641691774217,0.00582481,41646.0,41645.0,0.385942]
[1641691774416,0.00582481,41646.0,41644.0,0.054032]
[1641691774615,0.00582481,41646.0,41643.0,0.30919239]
[1641691775016,0.00582481,41646.0,41642.0,0.41667549]
[1641691775216,0.06586481,41646.0,41643.0,0.019]
[1641691776425,0.06586481,41646.0,41641.0,0.32101348]
[1641691776721,0.06586481,41646.0,41639.0,0.0012426]
[1641691777218,0.06586481,41646.0,41641.0,0.022]
[1641691777678,0.06586481,41646.0,41643.0,0.32045568]
[1641691777874,0.06586481,41646.0,41643.0,0.38049868]
[1641691778276,0.00582481,41646.0,41643.0,0.31163793]
[1641691779277,0.06586381,41646.0,41643.0,0.084043]
[1641691779474,0.06586381,41646.0,41643.0,0.024]
[1641691780878,0.06586381,41646.0,41641.0,0.114083]
[1641691781076,0.06586381,41646.0,41641.0,0.060044]
[1641691781317,0.06586381,41646.0,41643.0,0.023]
[1641691782518,0.06586381,41646.0,41640.0,0.20356266]
[1641691782718,0.06586381,41646.0,41640.0,0.25760266]
[1641691783018,0.06586381,41646.0,41641.0,0.060045]
[1641691783221,0.06586381,41646.0,41642.0,0.55752829]
[1641691785268,0.06586381,41646.0,41642.0,0.63456529]
[1641691785668,0.00582481,41646.0,41642.0,0.63456529]
[1641691785869,0.00582481,41646.0,41643.0,0.385942]
[1641691786872,0.00582481,41646.0,41643.0,0.445983]
[1641691787069,0.00582481,41646.0,41644.0,0.53595433]
[1641691787270,0.00582481,41646.0,41645.0,0.89189699]
[1641691788572,0.00582481,41646.0,41645.0,0.59189699]
[1641691788820,0.00582481,41646.0,41644.0,0.11406954]
[1641691789020,0.00582481,41646.0,41645.0,0.785942]
[1641691789226,0.00582481,41646.0,41645.0,0.404942]
[1641691789622,0.00582481,41646.0,41645.0,0.019]
[1641691790021,0.00707645,41646.0,41645.0,0.019]
[1641691790420,0.00707645,41646.0,41642.0,0.55752829]
[1641691790622,0.060056,41644.0,41642.0,0.55752829]
[1641691791221,0.060056,41644.0,41642.0,0.58852829]
[1641691791222,0.067056,41644.0,41642.0,0.58852829]
[1641691792570,0.067056,41644.0,41642.0,0.53684829]
[1641691793171,0.065056,41644.0,41642.0,0.54384829]
[1641691793871,0.06451452,41644.0,41642.0,0.54384829]